{"text_format":"1","workbook":"xlsx","n_sheets":9,"sheets":["Start","Annahmerichtlinien ","Wettbewerb Budget","Return on Invest","Detail Berechnung","Absentismus","Präsentismus","Fluktuation","Branchenzahlen"],"not_rendered":{"charts":0,"images":10,"macros":1,"external_links":1,"defined_names":7,"comments":1,"pivot_tables":0},"unopened":[],"bounds":{"document_bytes":16777216,"sheet_cells":100000,"rows_first":2000,"rows_last":500,"rows_between":2000,"halvings":0,"cell_chars":16384,"cell_head_chars":4096},"cells_cut":0,"cells_raw":0,"read":"whole","date_system":"1900"}

{"sheet":"Start","index":0,"n_rows":10,"n_cols":4,"rows_kept":10,"cut":false,"hidden":false,"merged":[]}
[]
[]
[]
[]
[]
[]
[]
[]
[]
[null,null,null,{"$f":"IF(D9=\"\",\"\",VLOOKUP(D9,'Wettbewerb Budget'!D2:AJ50,Start!F8,FALSE))","v":""}]

{"sheet":"Annahmerichtlinien ","index":1,"n_rows":17,"n_cols":20,"rows_kept":17,"cut":false,"hidden":true,"merged":[[1,1,1,12],[16,9,16,12],[3,1,3,2],[3,3,3,5],[3,6,3,8],[3,9,3,12],[5,10,5,11],[6,1,7,1],[8,1,10,1],[10,3,10,5],[11,1,12,1],[14,1,16,1],[4,9,4,12]]}
[]
[null,"Quick-Check Annahmerichtlinien "]
[]
[null,"Tarif ",null,"Mitarbeitende AG-Finanzierung  ",null,null,"Familienangehörige ",null,null,"Mitarbeitende AN-Finanzierung"]
[null,null,null,null,null,null,null,null,null,"Hinweis: Mitarbeitende, für die ein AG-finanzierter Tarif abgeschlossen wurde, können ihren Versicherungsschutz nur mit Tarifen aus anderen Leistungsbereichen gegen eigene Beitragszahlung erweitern (zulässiges Beispiel: MediGroupAG Z Premium und MediGroup ZB;  unzulässiges Beispiel: MediGroupAG Z Premium und MediGroup Z Duo). "]
[null,null,null,"MA-Zahl","Bedingung","Anmeldung","Auswahl","Bedingung","Anmeldung","MA-Zahl","Bedingung",null,"Anmeldung"]
[null,"Stationär",null,null,{"$f":"IF(AND(S7=TRUE,D7>=20),\"ohne Gesundheitsprüfung, mit Berufsprüfung, laufende und angeratene Behandlungen mitversichert\",IF(AND(S7=TRUE,D7<20,D7>=10),\"ohne Gesundheitsprüfung, aber bestimmte schwere Vorerkrankungen ausgeschlossen, Berufsprüfung\",\"nicht ausgewählt\"))","v":"nicht ausgewählt"},{"$f":"IF(AND(S7=TRUE,D7>=10),\"Checkliste, dann Anmeldung der MA über Meldeliste von GVU\",\"\")","v":""},null,{"$f":"IF(AND(S7=TRUE,D7<20,D7>=10,T7=TRUE),\"mit Gesundheits- und Berufsprüfung\",IF(AND(S7=TRUE,D7>=20,T7=TRUE),\"ohne Gesundheitsprüfung innerhalb von 6 Monaten im gleichen Tarif, bestimmte schwere Vorerkrankungen ausgeschlossen, Berufsprüfung\",\"\"))","v":""},{"$f":"IF(AND(S7=TRUE,T7=TRUE,D7<20,D7>1),\"MediGroup Antrag\",IF(AND(S7=TRUE,T7=TRUE,D7>=20),\"speziellen Antrag mit sog. Merkblattregelung bei GVU anfordern\",\"\"))","v":""},null,{"$f":"IF(AND(J7>=5,J7<50,S7=TRUE),\"mit Gesundheits- und Berufsprüfung\",IF(AND(J7>=50,S7=TRUE),\"ohne Gesundheitsprüfung, sodass laufende und angeratene Behandlungen mitversichert sind, sofern nicht mehr als 20 AU-Tage in den letzten 12 Monaten, Berufsprüfung\",\"nicht ausgewählt\"))","v":"nicht ausgewählt"},{"$f":"IF(AND(J7>=5,J7<20,S7=TRUE),\"Risikozuschlag, Leistungsausschluss, Ablehnung möglich\",IF(AND(J7>=20,J7<50,S7=TRUE),\"Risikozuschlag, Leistungsausschluss möglich, keine Ablehnung\",IF(AND(S7=TRUE,J7>=50),\"keine Ablehnung\",\"\")))","v":""},{"$f":"IF(AND(S7=TRUE,J7>=5,J7<50),\"MediGroup Antrag\",IF(AND(S7=TRUE,J7>=50),\"Antrag über GVU\",\"\"))","v":""},null,null,null,null,null,false,false]
[null,null,null,null,{"$f":"IF(AND(S8=TRUE,D8>=20),\"ohne Gesundheitsprüfung, mit Berufsprüfung\",IF(AND(S8=TRUE,D8<20,D8>=5),\"ohne Gesundheitsprüfung, laufende und angeratene Behandlungen nicht versichert, Berufsprüfung\",\"nicht ausgewählt\"))","v":"nicht ausgewählt"},{"$f":"IF(AND(S8=TRUE,D8>=5),\"Checkliste, dann Anmeldung der MA über Meldeliste von GVU\",\"\")","v":""},null,{"$f":"IF(AND(S8=TRUE,D8<20,D8>=5,T8=TRUE),\"ohne Gesundheitsprüfung, mit Berufsprüfung\",IF(AND(S8=TRUE,D8>=20,T8=TRUE),\"ohne Gesundheitsprüfung, mit Berufsprüfung\",\"\"))","v":""},{"$f":"IF(AND(S8=TRUE,T8=TRUE,D8<20,D8>1),\"MediGroupAntrag\",IF(AND(S8=TRUE,T8=TRUE,D8>=20),\"speziellen Antrag mit sog. Merkblattregelung bei GVU anfordern\",\"\"))","v":""},null,{"$f":"IF(AND(J8>=5,J8<50,S8=TRUE),\"ohne Gesundheitsprüfung, mit Berufsprüfung\",IF(AND(J8>=50,S8=TRUE),\"ohne Gesundheitsprüfung, mit Berufsprüfung\",\"nicht ausgewählt\"))","v":"nicht ausgewählt"},{"$f":"IF(AND(J8>=5,J8<20,S8=TRUE),\"Ablehnung möglich\",IF(AND(J8>=20,J8<50,S8=TRUE),\"keine Ablehnung\",IF(AND(S8=TRUE,J8>=50),\"keine Ablehnung\",\"\")))","v":""},{"$f":"IF(AND(S8=TRUE,J8>=5,J8<50),\"MediGroup Antrag\",IF(AND(S8=TRUE,J8>=50),\"Antrag über GVU\",\"\"))","v":""},null,null,null,null,null,false,false]
[null,"Zahn",null,null,{"$f":"IF(AND(S9=TRUE,D9>=20),\"ohne Gesundheits- und Berufsprüfung (ausg. Zahnarztpraxen), laufende und angeratene Behandlungen mitversichert\",IF(AND(S9=TRUE,D9<20,D9>=5),\"ohne Gesundheitsprüfung, laufende und angeratene Behandlungen nicht versichert, keine Berufsprüfung (ausg. Zahnarztpraxen)\",\"nicht ausgewählt\"))","v":"nicht ausgewählt"},{"$f":"IF(AND(S9=TRUE,D9>=5),\"Checkliste, dann Anmeldung der MA über Meldeliste von GVU\",\"\")","v":""},null,{"$f":"IF(AND(S9=TRUE,D9<20,D9>=5,T9=TRUE),\"ohne Gesundheitsprüfung, laufende und angeratene Behandlungen sind mitversichert, keine Berufsprüfung (ausg. Zahnarztpraxen)\",IF(AND(S9=TRUE,D9>=20,T9=TRUE),\"ohne Gesundheitsprüfung, laufende und angeratene Behandlungen  mitversichert, keine Berufsprüfung (ausg. Zahnarztpraxen)\",\"\"))","v":""},{"$f":"IF(AND(S9=TRUE,T9=TRUE,D9<20,D9>1),\"MediGroupAntrag\",IF(AND(S9=TRUE,T9=TRUE,D9>=20),\"speziellen Antrag mit Merkblattregelung bei GVU anfordern\",\"\"))","v":""},null,{"$f":"IF(AND(J9>=5,J9<50,S9=TRUE),\"ohne Gesundheitsprüfung, aber fehlende Zähne sowie laufende und angeratene Behandlungen nicht versichert, keine Berufsprüfung (ausg. Zahnarztpraxen)\",IF(AND(J9>=50,S9=TRUE),\"ohne Gesundheitsprüfung, sodass laufende und angeratene Behandlungen mitvrersichert sind, sofern nicht mehr als 20 AU-Tage in den letzten 12 Monaten, keine Berufsprüfung (ausg. Zahnarztpraxen)\",\"nicht ausgewählt\"))","v":"nicht ausgewählt"},"",{"$f":"IF(AND(S9=TRUE,J9>=5,J9<50),\"MediGroup Antrag\",IF(AND(S9=TRUE,J9>=50),\"Antrag über GVU\",\"\"))","v":""},null,null,null,null,null,false,false]
[null,null,null,null,{"$f":"IF(AND(S10=TRUE,D10>=20),\"ohne Gesundheits- und Berufsprüfung (ausg. Zahnarztpraxen), laufende und angeratene Behandlungen mitversichert\",IF(AND(S10=TRUE,D10<20,D10>=5),\"ohne Gesundheitsprüfung, fehlende Zähne sowie laufende und angeratene Behandlungen nicht versichert, keine Berufsprüfung (ausg. Zahnarztpraxen)\",\"nicht ausgewählt\"))","v":"nicht ausgewählt"},{"$f":"IF(AND(S10=TRUE,D10>=5),\"Checkliste, dann Anmeldung der MA über Meldeliste von GVU\",\"\")","v":""},null,{"$f":"IF(AND(S10=TRUE,D10<20,D10>=5,T10=TRUE),\"ohne Gesundheitsprüfung, fehlende Zähne sowie laufende und angeratene Behandlungen nicht versichert, keine Berufsprüfung (ausg. Zahnarztpraxen)\",IF(AND(S10=TRUE,D10>=20,T10=TRUE),\"ohne Gesundheitsprüfung innerhalb von 6 Monaten im gleichen Tarif, fehlende Zänne und laufende/angeratene Behandlungen mitversichert, keine Berufsprüfung (ausg. Zahnarztpraxen)\",\"\"))","v":""},{"$f":"IF(AND(S10=TRUE,T10=TRUE,D10<20,D10>1),\"MediGroupAntrag\",IF(AND(S10=TRUE,T10=TRUE,D10>=20),\"speziellen Antrag mit Merkblattregelung bei GVU anfordern\",\"\"))","v":""},null,{"$f":"IF(AND(J10>=5,J10<50,S10=TRUE),\"ohne Gesundheits- und Berufsprüfung (ausg. Zahnarztpraxen)\",IF(AND(J10>=50,S10=TRUE),\"ohne Gesundheitsprüfung, sodass fehlende Zähne sowie laufende und angeratene Behandlungen mitversichert sind, sofern nicht mehr als 20 AU-Tage in den letzten 12 Monaten, keine Berufsprüfung (ausg. Zahnarztpraxen)\",\"nicht ausgewählt\"))","v":"nicht ausgewählt"},"","",null,null,null,null,null,false,false]
[null,null,null,"Wird in der AG-Finanzierung nicht angeboten",null,null,null,{"$f":"IF(AND(S11=TRUE,T11=TRUE),\"mit Gesundheitsprüfung\",\"\")","v":""},{"$f":"IF(AND(S11=TRUE,T11=TRUE),\"MediGroup Antrag\",\"\")","v":""},null,{"$f":"IF(AND(J11>=5,J11<50,S11=TRUE),\"mit Gesundheitsprüfung\",IF(AND(J11>=50,S11=TRUE),\"ohne Gesundheitsprüfung, sodass fehlende Zänne sowie laufende und angeratene Behandlungen mitversichert sind, sofern nicht mehr als 20 AU-Tage in den letzten 12 Monaten, keine Berufsprüfung (ausg. Zahnärzte)\",\"nicht ausgewählt\"))","v":"nicht ausgewählt"},"",{"$f":"IF(AND(S11=TRUE,J11>=5,J11<50),\"MediGroup Antrag\",IF(AND(S11=TRUE,J11>=50),\"Antrag über GVU\",\"\"))","v":""},null,null,null,null,null,false,false]
[null,"Ambulant",null,null,{"$f":"IF(AND(S12=TRUE,D12>=20),\"ohne Gesundheitsprüfung, mit Berufsprüfung, laufende und angeratene Behandlungen mitversichert\",IF(AND(S12=TRUE,D12<20,D12>=10),\"ohne Gesundheitsprüfung, aber bestimmte schwere Vorerkrankungen nicht versichert, Berufsprüfung\",\"nicht ausgewählt\"))","v":"nicht ausgewählt"},{"$f":"IF(AND(S12=TRUE,D12>=10),\"Checkliste, dann Anmeldung der MA über Meldeliste von GVU\",\"\")","v":""},null,{"$f":"IF(AND(S12=TRUE,D12<20,D12>=10,T12=TRUE),\"mit Gesundheits- und Berufsprüfung\",IF(AND(S12=TRUE,D12>=20,T12=TRUE),\"ohne Gesundheitsprüfung innerhalb von 6 Monaten im gleichen Tarif, bestimmte schwere Vorerkrankungen ausgeschlossen, Berufsprüfung\",\"\"))","v":""},{"$f":"IF(AND(S12=TRUE,T12=TRUE,D12<20,D12>1),\"MediGroupAntrag\",IF(AND(S12=TRUE,T12=TRUE,D12>=20),\"speziellen Antrag mit Merkblattregelung bei GVU anfordern\",\"\"))","v":""},null,{"$f":"IF(AND(J12>=5,J12<50,S12=TRUE),\"mit Gesundheitsprüfung\",IF(AND(J12>=50,S12=TRUE),\"ohne Gesundheitsprüfung, sodass laufende und angeratene Behandlungen mitversichert sind, sofern nicht mehr als 20 AU-Tage in den letzten 12 Monaten, Berufsprüfung\",\"nicht ausgewählt\"))","v":"nicht ausgewählt"},"","",null,null,null,null,null,false,false]
[null,null,null,null,{"$f":"IF(AND(D13>=5,S13=TRUE),\"ohne Gesundheits- und Berufsprüfung\",\"nicht ausgewählt\")","v":"nicht ausgewählt"},{"$f":"IF(AND(S13=TRUE,D13>=5),\"Checkliste, dann Anmeldung der MA über Meldeliste von GVU\",\"\")","v":""},null,{"$f":"IF(AND(S13=TRUE,D13>=5,T13=TRUE),\"ohne Gesundheits- und Berufsprüfung\",\"\")","v":""},{"$f":"IF(AND(S13=TRUE,T13=TRUE,D13>1),\"MediGroupAntrag\",\"\")","v":""},null,{"$f":"IF(J13>=1,\"ohne Gesundheits- und Berufsprüfung\",\"nicht ausgewählt\")","v":"nicht ausgewählt"},null,"",null,null,null,null,null,false,false]
[null,"Budget",null,5,{"$f":"IF(AND(D14>=5,D14<10,S14=TRUE),\"ohne Gesundheitsprüfung, laufende und angeratene Behandlungen mitversichert, Leistungserbringer wie bspw. Zahnarzt- und Arztpraxen zählen zu den nicht versicherbaren Berufen\",IF(AND(D14>=10,S14=TRUE),\"ohne Gesundheitsprüfung, laufende und angeratene Behandlungen mitversichert, Leistungserbringer wie bspw. Zahnarzt- und Arztpraxen zählen zu den nicht versicherbaren Berufen, 300 Budget nur ab 10 MA\",\"nicht ausgewählt\"))","v":"ohne Gesundheitsprüfung, laufende und angeratene Behandlungen mitversichert, Leistungserbringer wie bspw. Zahnarzt- und Arztpraxen zählen zu den nicht versicherbaren Berufen"},{"$f":"IF(AND(S14=TRUE,D14>=5),\"Checkliste, dann Anmeldung der MA über Meldeliste von GVU\",\"\")","v":"Checkliste, dann Anmeldung der MA über Meldeliste von GVU"},null,{"$f":"IF(AND(S14=TRUE,D14<20,D14>=5,T14=TRUE),\"mit Gesundheitsprüfung, laufende und angeratene Behandlungen nicht versichert, Tarifstufe frei wählbar, keine Berufsprüfung\",IF(AND(S14=TRUE,D14>=20,T14=TRUE),\"ohne Gesundheitsprüfung innerhalb von 6 Monaten in der gleichen/niedrigeren Budgetstufe, laufende und angeratene Behandlungen mitversichert, keine Berufsprüfung\",\"\"))","v":""},{"$f":"IF(AND(S14=TRUE,T14=TRUE,D14<20,D14>1),\"MediGroupAntrag\",IF(AND(S14=TRUE,T14=TRUE,D14>=20),\"speziellen Antrag mit Merkblattregelung bei GVU anfordern\",\"\"))","v":""},null,{"$f":"IF(AND(J14>=5,J14<50,S14=TRUE),\"mit Gesundheitsprüfung\",IF(AND(J14>=50,S14=TRUE),\"ohne Gesundheitsprüfung, sodass laufende und angeratene Behandlungne mitversichert sind, sofern nicht mehr als 20 AU-Tage in den letzten 12 Monaten, keine Berufsprüfung (ausg. Profitsport, Zahnarztpraxen)\",\"nicht ausgewählt\"))","v":"nicht ausgewählt"},{"$f":"IF(AND(J14>=5,J14<20,S14=TRUE),\"Risikozuschlag, Leistungsausschluss, Ablehnung möglich\",IF(AND(J14>=20,J14<50,S14=TRUE),\"Risikozuschlag, Leistungsausschluss möglich, keine Ablehnung\",IF(AND(S14=TRUE,J14>=50),\"keine Ablehnung\",\"\")))","v":""},"",null,null,null,null,null,true,false]
[null,"TG, PG und Ausland",null,null,{"$f":"IF(AND(D15>=10,D15<20,S15=TRUE),\"mit Gesundheits- und Berufsprüfung, Erschwernis analog Einzelgeschäft, Ablehnung möglich\",IF(AND(D15>=20,S15=TRUE),\"KT bis max. 30€ ohne Gesundheitsprüfung, darüber hinaus mit Gesundheitsprüfung\",\"nicht ausgewählt\"))","v":"nicht ausgewählt"},{"$f":"IF(AND(S15=TRUE,D15>=10,D15<20),\"Gruppenantrag\",IF(AND(S15=TRUE,D15>=20),\"Checkliste, dann Anmeldung der MA über Meldeliste von GVU\",\"\"))","v":""},null,{"$f":"IF(AND(D15>=20,S15=TRUE,T15=TRUE),\"bis max. 30€ ohne Gesundheitsprüfung, bestimmte schwere Vorerkrankungen ausgeschlossen, darüber hinaus mit Gesundheitsprüfung\",IF(AND(S15=TRUE,T15=TRUE,D15>=10,D15<20),\"mit Gesundheitsprüfung, Risikozuschlag, Leistungsauschluss\",\"\"))","v":""},{"$f":"IF(AND(D15>=20,S15=TRUE,T15=TRUE),\"Antrag über GVU, bis 30€ mit Merkblattregelung\",IF(AND(S15=TRUE,T15=TRUE,D15>=5,D15<20),\"speziellen Antrag mit Merkblattregelung bei GVU anfordern\",\"\"))","v":""},null,{"$f":"IF(AND(J15>=5,J15<50,S15=TRUE),\"mit Gesundheitsprüfung\",IF(AND(J15>=50,S15=TRUE),\"ohne Gesundheitsprüfung, sofern nicht mehr als 20 AU-Tage in den letzten 12 Monaten\",\"nicht ausgewählt\"))","v":"nicht ausgewählt"},{"$f":"IF(AND(J15>=5,J15<20,S15=TRUE),\"Risikozuschlag, Leistungsausschluss, Ablehnung möglich\",IF(AND(J15>=20,J15<50,S15=TRUE),\"Risikozuschlag, Leistungsausschluss möglich, keine Ablehnung\",IF(AND(S15=TRUE,J15>=50),\"keine Ablehnung\",\"\")))","v":""},{"$f":"IF(AND(J15>=5,S15=TRUE),\"Antrag über GVU\",\"\")","v":""},null,null,null,null,null,false,false]
[null,null,null,null,{"$f":"IF(AND(D16>=20,S16=TRUE),\"ohne Gesundheitsprüfung, mit Berufsprüfung\",\"nicht ausgewählt\")","v":"nicht ausgewählt"},{"$f":"IF(AND(S16=TRUE,D16>=20),\"Checkliste, dann Anmeldung der MA über Meldeliste von GVU\",\"\")","v":""},null,{"$f":"IF(AND(S16=TRUE,T16=TRUE,D16>=20),\"mit Gesundheits- und Berufsprüfung, Erschwerung analog Einzelgeschäft möglich; Kinder und Jugendliche nur im Rahmen der Kindernachversicherungs versicherbar\",\"\")","v":""},{"$f":"IF(AND(S16=TRUE,T16=TRUE,D16>=5),\"Ergänzungsantrag PG\",\"\")","v":""},null,{"$f":"IF(AND(J16>=5,S16=TRUE),\"mit Gesundheitsprüfung\",\"nicht ausgewählt\")","v":"nicht ausgewählt"},{"$f":"IF(AND(J16>=5,J16,S16=TRUE),\"Risikozuschlag, Leistungsausschluss, Ablehnung möglich\",\"\")","v":""},{"$f":"IF(AND(J16>=5,S16=TRUE),\"Ergänzungsantrag PG\",\"\")","v":""},null,null,null,null,null,false,false]
[null,null,null,null,{"$f":"IF(AND(D17>=20,S16=TRUE),\"ohne Gesundheitsprüfung\",\"nicht ausgewählt\")","v":"nicht ausgewählt"},{"$f":"IF(AND(S17=TRUE,D17>=20),\"Checkliste, dann Anmeldung der MA über Meldeliste von GVU\",\"\")","v":""},null,{"$f":"IF(AND(S17=TRUE,T17=TRUE,D17>=20),\"ohne Gesundheitsprüfung\",\"\")","v":""},{"$f":"IF(AND(S17=TRUE,T17=TRUE,D17>=5),\"speziellen Antrag mit Merkblattregelung bei GVU anfordern\",\"\")","v":""},"Wird in AN-Finanzierung nicht angeboten, Absicherung in Tarife des Einzelgeschäfts ",null,null,null,null,null,null,null,null,false,false]

{"sheet":"Wettbewerb Budget","index":2,"n_rows":52,"n_cols":36,"rows_kept":52,"cut":false,"hidden":false,"merged":[[38,1,42,1],[44,1,48,1],[50,31,50,32],[51,19,51,20],[22,1,32,1],[33,1,34,1],[51,17,51,18]]}
[]
[null,null,"Versicherer","Gothaer","Barmenia","Allianz","ARAG","AXA","AXA","Continentale","Continentale","Continentale","Debeka ","DKV","Generali","Hallesche","Hallesche","Hallesche","Hallesche","HanseMerkur ","HanseMerkur ","LKH","LKH","LKH","Münchner Verein ","Nürnberger ","Ottonova","R+V","SDK","SDK","Signal Iduna","Signal Iduna","Signal Iduna","UKV/VKB","Württembergische","Württembergische"]
[null,null,"Tarif","FlexSelect","WellYou pure","MeineGesundheit","BudgetFlex Komfort BL","FlexMed easy","FlexMed easy Plus","Choose","Choose More ","Choose MAX","Flex","BonusMed Budget","bKV-Budget","FEELfree","FEELfree_plus","    FEELFree:Up ","    FEELfree:up_plus ","BKB","BKBT","TeamUpgrade Smile","TeamUpgrade Fit","TeamUpgrade Complete","GemeinsamGesund Budget","BudgetSelect","CrewCare","Budget PROFIL","ZahnBudget","AmbulantBudget","GesundAKTIV +","GesundAGIL+","GesundVITAL+","BudgetPro","StartBudget300","Budget300 - 1200"]
[null,null,"Versicher + Tarif",{"$f":"D2&\" - \"&CHAR(10)&D3","v":"Gothaer - \nFlexSelect"},{"$f":"E2&\" - \"&CHAR(10)&E3","v":"Barmenia - \nWellYou pure"},{"$f":"F2&\" - \"&CHAR(10)&F3","v":"Allianz - \nMeineGesundheit"},"ARAG - \nBudgetFlex Komfort BL","AXA - \nFlexMed easy","AXA - \nFlexMed easy Plus","Continentale - \nChoose","Continentale - \nChoose More ","Continentale - \nChoose MAX",{"$f":"M2&\" - \"&CHAR(10)&M3","v":"Debeka  - \nFlex"},{"$f":"N2&\" - \"&CHAR(10)&N3","v":"DKV - \nBonusMed Budget"},"Generali - \nbKV-Budget","Hallesche - \nFEELfree","Hallesche - \nFEELfree_plus","Hallesche - \n    FEELFree:Up ","Hallesche - \n    FEELfree:up_plus ","HanseMerkur  - \nBKB","HanseMerkur  - \nBKBT","LKH - \nTeamUpgrade Smile","LKH - \nTeamUpgrade Fit",{"$f":"X2&\" - \"&CHAR(10)&X3","v":"LKH - \nTeamUpgrade Complete"},"Münchner Verein  - \nGemeinsamGesund Budget","Nürnberger  - \nBudgetSelect","Ottonova - \nCrewCare","R+V - \nBudget PROFIL","SDK - \nZahnBudget","SDK - \nAmbulantBudget","Signal Iduna - \nGesundAKTIV +","Signal Iduna - \nGesundAGIL+","Signal Iduna - \nGesundVITAL+","UKV/VKB - \nBudgetPro","Württembergische - \nStartBudget300","Württembergische - \nBudget300 - 1200"]
[null,null,"Tarifeinführung","2020-10-01","2025-01-01","2025-04-01","2022-10-01","2021-07-19",null,"2020-11-01",null,null,"2023-12-01",null,null,"2018-10-01",null,"  01.07.2022","  01.07.2022",null,null,null,null,"2025-04-01","2022-09-01","2022-08-01","2022-09-01","2022-07-01","2021-05-01","2021-05-02","2022-10-01","2022-10-02","2022-10-03","2022-09-01"]
[null,null,"Budget in Euro","300-500-750","300 - 600 - 900","300-600-900-1200-1500","300-600-900-1200-1500","300-600-900-1200-1500","300-600-900-1200-1500","400-800-1200   ","400-800-1200-1600","400-800-1200-1600","300-600-900-1200-1500","300-600-900-1200","300-600-900-1200-1500","300-600-900-1200-1500","300-600-900-1200-1500","300-600-900-1200-1500","300-600-900-1200-1500","300-600-900-1200-1500-1700","300-600-900-1200-1500-1700","300-600-900-1200-1500","300-600-900-1200-1500","300-600-900-1200-1500","300 | 600 |  1000 | 1500 ","300-600-900-1200","300-600-900-1200-1500","300-600-900-1200-1500","500-1000-1500","500-1000-1500","300-600-900-1200-1500","300-600-900-1200-1500","300-600-900-1200-1500","400-800-1200 ",300,"300-600-900-1200"]
[null,null,300,10.4,13.4,13.9,10.91,11.92,12.98,null,null,null,10.9,15.68,12.79,12.99,12.99,14.5,18.61,9.9,10.9,13.5,12.5,12.5,12.9,11.9,13.21,18.93,null,null,13,24.22,32.68,null,5.85,12.31]
[null,null,400,null,null,null,null,null,null,14.49,31.5,32.659999999999997,null,null,null,null,null,null,null,null,null,null,null,null,null,null,null,null,null,null,null,null,null,17.510000000000002]
[null,null,500,15.65,null,null,null,null,null,null,null,null,null,null,null,null,null,null,null,null,null,null,null,null,null,null,null,null,10.88,19.559999999999999]
[null,null,600,null,21.7,22.9,19.48,21.88,19.329999999999998,17.75,38.01,44,19.899999999999999,25.97,24.48,22.88,22.88,25.67,29.64,17.899999999999999,19.899999999999999,21.9,18.899999999999999,18.899999999999999,21.9,19.7,22.54,32.950000000000003,null,null,22,33.22,41.68,null,null,19.82]
[null,null,750,20.9]
[null,null,800,null,null,null,null,null,null,23.21,42.74,47.99,null,null,null,null,null,null,null,null,null,null,null,null,null,null,null,null,null,null,null,null,null,28.46]
[null,null,900,null,30,32.9,26.88,28.95,23.55,null,null,null,26.9,33.840000000000003,28.42,32.75,32.75,35.299999999999997,39.53,23.9,26.9,29.5,23.9,23.9,null,29.5,31.17,43.57,null,null,30,41.22,49.68,null,null,24.33]
[null,null,1000,null,null,null,null,null,null,null,null,null,null,null,null,null,null,null,null,null,null,null,null,null,34.5,null,null,null,16.170000000000002,25.93]
[null,null,1200,null,null,41.9,33.89,36.33,27.72,28.98,51.45,59.85,32.9,40.32,35.74,41.96,41.96,44.22,49.14,28.9,32.9,36.9,28.5,28.5,null,36.9,38.74,58.51,null,null,37,48.22,56.68,null,null,28.48]
[null,null,1250,null,null,null,null,null,null,null,null,null,null,null,null,null,null,null,null,null,null,null,null,null,null,null,null,null,null,null,null,null,null,38.94]
[null,null,1500,null,null,49.9,38.950000000000003,42.67,31.87,null,null,null,37.9,null,42.96,49,49,49.92,56.03,33.9,37.9,44.9,33.5,33.5,48,null,44.03,65.959999999999994,20.74,31.59,43,54.22,62.68]
[null,null,1600,null,null,null,null,null,null,null,57.86,67.52]
[null,null,1700,null,null,null,null,null,null,null,null,null,41.9,null,null,null,null,null,null,37.9,41.9]
[null,null,"Prämie in Euro inkl. Beitragsbefreiung","10,40 | 15,65 | 20,90","13,40 | 21,70 | 30,00","13,90 | 22,90 | 32,90 | 41,90 | 49,90","10,91 | 19,48 | 26,88 | 33,89 | 38,95","11,92 | 21,88 | 28,95 | 36,33 | 42,67","12,98 | 19,33 | 23,55 | 27,72 | 31,87 ","14,49 | 17,75 | 23,21 | 28,98","31,50 | 38,01 | 42,74 | 51,45 | 57,86","32,66 | 44,00 | 47,99 | 59,85 | 67,52 ","16,80 | 22,48 | 28,18 | 33,18 | 37,48 ","15,68 | 25,97 | 33,84 | 40,32 ","12,79 | 21,48 | 28,42 | 35,74 | 42,96","9,95 | 19,75 | 28,27 | 36,16 | 42,24","12,99 | 22,88 | 32,75 | 41,96 | 49,00","14,50 | 25,67 | 35,30 | 44,22 | 49,92","18,61 | 29,64 | 39,53 | 49,14 | 56,03","9,90 | 17,90 | 23,90 | 28,90 | 33,90 | 37,90 ohne Beitragsbefreiung! Zuschlag für BBF nicht bekannt.","10,90 | 19,90 | 26,90 | 32,90 | 37,90 | 41,90 ohne Beitragsbefreiung! Zuschlag für BBF nicht bekannt.","13,50  | 21,90 | 29,50 | 36,90  | 44,90\nkeine Bbefreiung vorhanden","12,50  | 18,90 | 23,90 | 28,50  | 33,50\nkeine Bbefreiung vorhanden","13,90  | 22,90 | 30,90 | 38,90  | 46,90\nkeine Bbefreiung vorhanden","12,90 | 21,90 | 34,50 | 48,00 ","11,90 | 19,70 | 29,50 | 36,90","13,21 | 22,54 | 31,17 | 38,74 | 44,03\nBeachte: Beitragsbefreiung auf Anfrage möglich, ggfs. Preisabweichung","ab 5 MA \n18,93 | 32,95 | 43,57 | 58,51 | 65,96\nab 10 MA \n15,25 | 26,54 | 35,10 | 47,13 | 53,14","10,88 | 16,17 | 20,74","19,56 | 25,93 | 31,59 ","13,00 | 22,00 | 30,00 | 37,00 | 43,00","24,22 | 33,22 | 41,22 | 48,22 | 54,22 ","32,68 | 41,68 | 49,68 | 56,68 | 62,68 ","17,51 | 28,46 | 38,94",5.85,"12,31  | 19,82 | 24,33 | 28,48 "]
[null,null,"Mindest-VP","5 (+90% Durchdrg.)","Budgeststufe 300: 10 VP\nab Budgetstufe 600: 5 VP",5,10,10,10,10,10,10,10,10,"unbekannt",10,10,10,10,5,5,5,5,5,"Budgetstufe 300: 10 VP\nab Budgetstufe 600: 5 VP ",5,5,5,5,5,3,3,3,10,3,3]
[null,null,"Familienangehörige","ja in FlexSelect FAN","ja in WellYou pure Me","ja","ja","nein","nein","ja, mit Ausschlussdiagnosen","ja, mit Ausschlussdiagnosen","nein","ja","nein","unbekannt","separate Tarfibausteine","separate Tarfibausteine","separate Tarifbausteine","separate Tarifbausteine","nur, wenn Familienangehörige auch AG-finanziert mitversichert werden, sonst Bausteintarife ","nur, wenn Familienangehörige auch AG-finanziert mitversichert werden, sonst Bausteintarife ","ja","ja","ja","nein","ja","nein","ja","ja","ja","ja","ja","ja","in Bausteinen","ja","ja"]
[null,"Ambulant","Verordnete Arznei-, Verband-, Heil,- Hilfsmittel","P","P","P","P","P","P","×","P","P","P","P","P","P","P","P","P","P","P","P","P","P","P","P","P","P","×","P","P","P","P","P","×","P"]
[null,null,"nicht verordnete Arzneimittel)","×","×","×","×","×","×","×","×","×","×","×","×","×","×","×","×","×","×","×","×","×","×","×","×","×","×","×","×","×","×","×","×","×"]
[null,null,"Ärztliche Behandlung ","×","×","P","×","×","×","×","×","×","×","×","×","×","×","×","×","×","×","×","×","×","×","×","×","×","×","×","×","×","×","×","×","×"]
[null,null,"Heilpraktiker","×","P","P","P","P","P","P","P","P","P","P","P","P","P","P","P","P","P","P","P","P","P","P","P","P","×","P","P","P","P","P","×","P"]
[null,null,"Naturheilverfahren durch Ärzte","×","P","P","P","P","P","×","P","P","P","P","P","×","×","×","×","P","P","P","P","P","P","P","P","P","×","P","P","P","P","P","×","P"]
[null,null,"Chiropraktik, Osteopathie","×","P","P","P","×","×","×","P","P","nur Osteo","×","×","P","P","P","P","×","×","P","P","P","nur Osteo","nur Osteopathie","nur Osteo","nur Osteopathie","×","nur Osteo","P","P","P","nur Osteo","×","nur Osteo"]
[null,null,"Hörgeräte","P","P","P","P","P","P","×","P","P","P50% d. Budgets","P","P","P","P","P","P","P","P","P","P","P","P","P","P","P","×","×","P","P","P","P","×","P"]
[null,null,"Sehhilfe","P180€","P170-210€","P75% d. Rechnungsbetrags aus Budgethöhe oder\n75% aus Extrabudget (Sufen 300-1500) oder\n100% aus Budgethöhe","P max. 180€/Jahr","P180€","P300€","P200€/2 J.","P250€","P","P50% d. Budgets","P","P200€/Jahr","P180€","P180€","P180€","P180€","P 200€, 225€, 250€, 275€, ab Tarifstufe 1.500€ 300€ zus. mit LASIK","P 250€, 300€, 350€, 400€, ab Tarifstufe 1.500€ 450€ ","P200-400€/Jahr","P200-400€/Jahr","P180-260€/Jahr","P50% des Budgets","P50% d. Budgets","P 200-300 €/Jahr","P","×","Palle 2 Kj., bis 200€","P max. 300€/Jahr","P max. 300€/Jahr","P max. 300€/Jahr","P180 - 220 €/Jahr","P 90€","P 120€ in Budget300, sonst 180€"]
[null,null,"Sehschärfenkorrektur / Lasik","P","P","P","P","P","P","P200€/2 J.","P","P","P","P","P","P180€","P180€","P","P","P 200€, 225€, 250€, 275€, ab Tarifstufe 1.500€ 300€ zus. mit Sehhilfen","P","P200-400€/Jahr","P200-400€/Jahr","P","P","P","P","P","×","P","P","P","P","P","P 90€","P 90€"]
[null,null,"Vorsorge-/Präventionsleistung","×","P","P","×","×","×","P","P","P","P aber keine IGel","P","P","×","P","×","P","P nur ausgewählte","P","nur Präventionskurse","P","P","P","P","×","P","×","P","P","P","P","×","P","P"]
[null,null,"Schutzimpfungen","×","×","P","×","×","×","×","P","P","×","P","P","×","P","×","P","P nur Auslansdreiseschutz","P nur Auslansdreiseschutz","×","P","P","P","P","×","P","×","P","P","P","P","×","×","P"]
[null,"Stationär","Krankenhaustagegeld","P10€, 28 Tage","×","×","×","×","×","P150€ ab 5. Tag","P150€ ab 5. Tag","P150€ ab 5. Tag","×","×","P10€","×","×","×","×","P10€, 28 Tage","P15€, 28 Tage, auch für Reha","P10€, 28 Tage","P10€, 28 Tage","×","×","×","×","×","×","×","×","×","×","P10€ / Tag","×","P10€, 28 Tage"]
[null,null,"Verdoppelung Budget bei Arbeitsunfall mit stat. Bhdlg. ","×","×","×","×","×","×","×","×","P","×","×","×","×","×","P","P","×","×","×","×","×","×","×","×","×","×","×","×","×","×","×","×","×"]
[null,null,"Anschluss-Reha (AHB)","×","×","×","×","×","×","×","P150€","P150€","×","×","×","×","×","×","×","×","×","×",null,null,"×","×","×","×","×","×","×","×","×","×","×"]
[null,null,"Krankentransporte ","×","×","×","×","×","×","×","P250€","P","×","×","×","×","×","×","×","×","×","×","×",null,"×","×","×","×","×","×","×","×","×","×","×"," nur Zuzahlung"]
[null,"KT","Kinderkrankentagegeld","×","×","×","P 15€/Tag","×","×","×","×","×","×","×","×","×","×","×","×","×","×","×","×",null,"P","×","×","×","×","×","×","×","×","×","×","×"]
[null,"Zahn","PZR","P 80€","P 60-100€ zs. mit Bleaching","P","P max. 80€/Jahr","P80€ zusammen mit Bleaching","P","P 75€","P250€ zusammen mit Bleaching","P","P Max. 2 mal im KJ.","P","P100€/Jahr","P 60€","P 60€","P 100€","P 100€","P 80€, 100€, ab Tarifstufe 900€ 120€ zus. mit Bleaching","P 200€, 250€, ab Tarifstufe 900€ 300 € zus. mit Bleaching","P","P","P80-160€/Jahr zs. mit Bleaching","P","P","P125 € für PZR und Bleaching","P","P1xjährlich","×","P max. 300€/Jahr","P max. 300€/Jahr","P max. 300€/Jahr","P","P 40€","P 80€"]
[null,null,"Bleaching","×","P 60-100€ zs. mit PZR","P","×","P 80€ zusammen mit PZR ","P80€","×","P250€ zusammen mit PZR","P","×","×","×","P 60€","P 60€","P 100€","P 100€","P 80€, 100€, ab Tarifstufe 900€ 120€ zus. mit PZR","P 200€, 250€, ab Tarifstufe 900€ 300 € zus. mit Bleaching","P200-400€/Jahr","×","P80-160€/Jahr zs. mit Bleaching","P","P","P125 € für PZR und Bleaching","×","×","×","P max. 100€/Jahr","P max. 100€/Jahr","P max. 100€/Jahr","×","×","×"]
[null,null,"Zahnbehandlung","P","P","P","P","P","P","P","P","P","×","P","×","P","P","P","P","P","P","P","×","P","P","P","P","P","P","×","P","P","P","P","×","P"]
[null,null,"Zahnersatz","P","P","P","P","P","×","P","P","P","×","P","×","P","P","P","P","P","P","P","×","P","P","P","P","P","P","×","P","P70% Leistung ü. Budget","P90% Leistung ü. Budget","P","optional","optional"]
[null,null,"KFO nach Unfall","×","P","P","P","P","×","×","P","P","×","×","×","×","×","×","×","P","P","P","×","P","P","P","×","P","P","×","P","P","P","×","×","P"]
[null,null,"Familienleistungen ","×","×","P","×","×","×","×","×","×","×","×","×","×","×","×","×","×","×","×","×","×","×","×","×","×","×","×","×","×","×","×","×","×"]
[null,"zus. Leistungen","Telemedizin, Facharzttermin.","P","P","P","digitaler Arztbesuch","P","P","P","P","P","×","Pnur Telemedizin","?","P","P","P","P","P 2x im Jahr Online-Ärzt:in und Oline-Dermatoglog:in","P 2x im Jahr Online-Ärzt:in und Oline-Dermatoglog:in","P","P","P","P","P","P"," Facharzt","P","P","P","P","P","P","P","P"]
[null,null,"Erschöpfungsprävention","×","P","P","×","×","×","×","×","×","P","×","?","×","×","×","×","P","×","×","×","×","×","P","×","×","×","×","P","P","P","×","P","P"]
[null,null,"Gesundheitstelefon","P","P","P","×","P","P","P","P","P","×","P","P","P","P","P","P","P","×","P","P","P","P","P","P","P","P","P","P","P","P","×","P","P"]
[null,null,"Pflegeassistance","P","P","P","×","×","×","×","×","×","×","×","×","×","×","×","×","×","×","×","×","×","×","×","×","×","×","×","P","P","P","×","×","×"]
[null,null,"Gesundheitsapp","P","P","P","P","P","P","P","P","P","P","P","P","P","P","P","P","P","P","P","P","P","P","P","P","P","P","P","P","P","P","P","P","P"]
[null,null,"Unterjährig volles Budget","×","P","P","P","P","P","×","P","P","P","×","?","×","×","P","P","?","P","P","P","P","P","P","P","P","×","×","P","P","P","P","×","×"]
[null,null,null,null,null,null,null,null,null,null,null,null,null,null,"noch keine QS, da AVB nicht vorliegen "]
[null,null,null,null,null,"Verdopplung des Budgets bei Leistungsfreiheit\n\nBeiträge mit Extra-Sehhilfenbudget: 15.90 | 24,90 | 35,90 | 45,90 | 53,90 ",null,null,null,null,null,null,null,null,null,null,null,"Bei vollständiger Ausnutzung des Budgets erhöht sich das Budget im 1. KJ um 50€, im 2. KJ. Um 100€, im 3. KJ um 150€ und ab dem 4. KJ um 200€",null,"Für 1€ MB-Mehrbeitrag erhöht sich das Budget bei einem leistungsfreiem Jahr um 25%, bei zwei leistungsfreien Jahren um 50%. ",null,null,null,null,null,null,null,null,null,null,null,null,null,null,null,"Besonderheit Stationär: Erstattungsfähig sind über die Budgethöhe hinaus zu 100 % Mehrkosten bei freier Krankenhauswahl, sofern die GKV eine Vorleistung für die allgemeinen Krankenhausleistungen erbringt. "]

{"sheet":"Return on Invest","index":3,"n_rows":48,"n_cols":7,"rows_kept":48,"cut":false,"hidden":false,"merged":[[1,1,1,6]]}
[]
[null,"Wirtschaftliche Gesamtbetrachtung des bKV Gesundheitsplans"]
[null,"Aus prozessualen Gründen sollten keine Kombinationen aus Barmenia und Gothaer gewählt werden.  "]
[null,"Branche ",null,"Gesundheitswesen"]
[null,null,null,"Gruppe 1","Gruppe 2","Gruppe 3","Gesamt"]
[null,"Anzahl Mitarbeitende",null,500,null,null,{"$f":"'Detail Berechnung'!G7","v":500}]
[null,"Durchschnittliches Jahresbruttoeinkommen je Mitarbeitenden",null,{"$f":"IF(D4=\"\",\"\",VLOOKUP(D4,Branchenzahlen!B3:F13,3,FALSE))","v":55908},{"$f":"IF(E6=\"\",\"\",D7)","v":""},{"$f":"IF(E6=\"\",\"\",D7)","v":""}]
[]
[null,"Tarifwauswahl"]
[null,"Budgettarif ",null,"Gothaer - \nFlexSelect"]
[null,"Budgetstufen ",null,{"$f":"IF(D10=\"\",\"\",HLOOKUP(D10,'Wettbewerb Budget'!B4:AJ50,3,FALSE))","v":"300-500-750"},{"$f":"IF(E10=\"\",\"\",HLOOKUP(E10,'Wettbewerb Budget'!B4:AJ50,3,FALSE))","v":""},{"$f":"IF(F10=\"\",\"\",HLOOKUP(F10,'Wettbewerb Budget'!B4:AJ50,3,FALSE))","v":""}]
[null,"Gewünschte Budgethöhe",null,750]
[null,"Monatlicher Beitrag je Mitarbeitenden (inkl. Beitragsbefreiung) ",null,{"$f":"IF(OR(D12=\"\",D10=\"\"),\"\",INDEX('Wettbewerb Budget'!C4:AJ19,MATCH(D12,'Wettbewerb Budget'!C4:C19,0),MATCH(D10,'Wettbewerb Budget'!C4:AJ4,0)))","v":20.9},{"$f":"IF(OR(E12=\"\",E10=\"\"),\"\",INDEX('Wettbewerb Budget'!C4:AJ19,MATCH(E12,'Wettbewerb Budget'!C4:C19,0),MATCH(E10,'Wettbewerb Budget'!C4:AJ4,0)))","v":""},{"$f":"IF(OR(F12=\"\",F10=\"\"),\"\",INDEX('Wettbewerb Budget'!C4:AJ19,MATCH(F12,'Wettbewerb Budget'!C4:C19,0),MATCH(F10,'Wettbewerb Budget'!C4:AJ4,0)))","v":""}]
[]
[null,"Baustein Stationär ",null,"MediGroupAG S 2"]
[null,"Monatllicher Beitrag je Mitarbeitenden (inkl. Beitragsbefreiung)",null,{"$f":"IF(D15=\"\",\"\",VLOOKUP(D15,Branchenzahlen!B18:C39,2,FALSE))","v":20.84},{"$f":"IF(E15=\"\",\"\",VLOOKUP(E15,Branchenzahlen!B18:C39,2,FALSE))","v":""},{"$f":"IF(F15=\"\",\"\",VLOOKUP(F15,Branchenzahlen!B18:D39,2,FALSE))","v":""}]
[null,"Baustein Zahnersatz"]
[null,"Monatllicher Beitrag je Mitarbeitenden (inkl. Beitragsbefreiung)",null,{"$f":"IF(D17=\"\",\"\",VLOOKUP(D17,Branchenzahlen!B18:C39,2,FALSE))","v":""},{"$f":"IF(E17=\"\",\"\",VLOOKUP(E17,Branchenzahlen!B18:C39,2,FALSE))","v":""},{"$f":"IF(F17=\"\",\"\",VLOOKUP(F17,Branchenzahlen!B18:C39,2,FALSE))","v":""}]
[null,"Baustein Zahnbehandlung"]
[null,"Monatllicher Beitrag je Mitarbeitenden (inkl. Beitragsbefreiung)",null,{"$f":"IF(D19=\"\",\"\",VLOOKUP(D19,Branchenzahlen!B20:C39,2,FALSE))","v":""},{"$f":"IF(E19=\"\",\"\",VLOOKUP(E19,Branchenzahlen!B20:C39,2,FALSE))","v":""},{"$f":"IF(F19=\"\",\"\",VLOOKUP(F19,Branchenzahlen!B20:C39,2,FALSE))","v":""}]
[null,"Baustein Vorsorge"]
[null,"Monatllicher Beitrag je Mitarbeitenden (inkl. Beitragsbefreiung)",null,{"$f":"IF(D21=\"\",\"\",VLOOKUP(D21,Branchenzahlen!B20:C39,2,FALSE))","v":""},{"$f":"IF(E21=\"\",\"\",VLOOKUP(E21,Branchenzahlen!B20:C39,2,FALSE))","v":""},{"$f":"IF(F21=\"\",\"\",VLOOKUP(F21,Branchenzahlen!B20:C39,2,FALSE))","v":""}]
[null,"Baustein Ambulant"]
[null,"Monatllicher Beitrag je Mitarbeitenden (inkl. Beitragsbefreiung)",null,{"$f":"IF(D23=\"\",\"\",VLOOKUP(D23,Branchenzahlen!B27:C45,2,FALSE))","v":""},{"$f":"IF(E23=\"\",\"\",VLOOKUP(E23,Branchenzahlen!B27:C45,2,FALSE))","v":""},{"$f":"IF(F23=\"\",\"\",VLOOKUP(F23,Branchenzahlen!B27:C45,2,FALSE))","v":""}]
[]
[null,"Jährliche Gesamtbelastung durch den Gesundheitsplan ",null,{"$f":"D47","v":-250439.99999999994},{"$f":"E47","v":""},{"$f":"F47","v":""},{"$f":"'Detail Berechnung'!G27","v":250439.99999999994}]
[]
[null,"Senkung der Absentismuskosten "]
[null,"Durchschnittl. AU-Tage je Mitarbeitenden (hier Branchendurchschnitt)",null,{"$f":"IF(OR(D4=\"\",D6=\"\"),\"\",IF(D4=\"\",\"\",VLOOKUP(D4,Branchenzahlen!B3:F13,4,FALSE)))","v":26.3},{"$f":"IF(OR(D4=\"\",E6=\"\"),\"\",IF(D4=\"\",\"\",VLOOKUP(D4,Branchenzahlen!B3:F13,4,FALSE)))","v":""},{"$f":"IF(OR(D4=\"\",F6=\"\"),\"\",IF(D4=\"\",\"\",VLOOKUP(D4,Branchenzahlen!B3:F13,4,FALSE)))","v":""}]
[null,"Durchschnittl. Ausfall- und Produktivitätsverlustkosten je Mitarbeitenden je AU-Tag ",null,{"$f":"IF(AND(OR(D4=\"\",D10=\"\"),OR(D4=\"\",D15=\"\"),OR(D4=\"\",D10=\"\",D15=\"\")),\"\",366)","v":366},{"$f":"IF(AND(OR(D4=\"\",E10=\"\"),OR(D4=\"\",E15=\"\"),OR(D4=\"\",E10=\"\",E15=\"\")),\"\",366)","v":""},{"$f":"IF(AND(OR(D4=\"\",F10=\"\"),OR(D4=\"\",F15=\"\"),OR(D4=\"\",F10=\"\",F15=\"\")),\"\",366)","v":""}]
[null,"Annahme/Zielwert: Reduktion von Fehlzeiten in Tagen ",null,{"$f":"IF(OR($D$4=\"\",D10=\"\"),\"\",IF(AND(OR(D13=\"\",D16=\"\"),OR(D13=\"\",D18=\"\"),OR(D13=\"\",D20=\"\"),OR(D13=\"\",D22=\"\"),OR(D13=\"\",D24=\"\")),0.5,0.7))","v":0.7},{"$f":"IF(OR($D$4=\"\",E10=\"\"),\"\",IF(AND(OR(E13=\"\",E16=\"\"),OR(E13=\"\",E18=\"\"),OR(E13=\"\",E20=\"\"),OR(E13=\"\",E22=\"\"),OR(E13=\"\",E24=\"\")),0.5,0.7))","v":""},{"$f":"IF(OR($D$4=\"\",F10=\"\"),\"\",IF(AND(OR(F13=\"\",F16=\"\"),OR(F13=\"\",F18=\"\"),OR(F13=\"\",F20=\"\"),OR(F13=\"\",F22=\"\"),OR(F13=\"\",F24=\"\")),0.5,0.7))","v":""}]
[null,"Jährliche Ersparnis durch den Gesundheitsplan",null,{"$f":"'Detail Berechnung'!D40","v":128100},{"$f":"'Detail Berechnung'!E40","v":""},{"$f":"'Detail Berechnung'!F40","v":""},{"$f":"'Detail Berechnung'!G40","v":128100}]
[]
[null,"Senkung der Präsentismuskosten "]
[null,"Durchschnittl. Leistungsminderung je Mitarbeitenden",null,{"$f":"IF(AND(OR(D4=\"\",D10=\"\"),OR(D4=\"\",D15=\"\"),OR(D4=\"\",D10=\"\",D15=\"\")),\"\",20%)","v":0.2},{"$f":"IF(AND(OR(D4=\"\",E10=\"\"),OR(D4=\"\",E15=\"\"),OR(D4=\"\",E10=\"\",E15=\"\")),\"\",20%)","v":""},{"$f":"IF(AND(OR(D4=\"\",F10=\"\"),OR(D4=\"\",F15=\"\"),OR(D4=\"\",F10=\"\",F15=\"\")),\"\",20%)","v":""}]
[null,"Anteil der Mitarbeitenden, die trotz Erkrankung arbeiten in %",null,{"$f":"IF(AND(OR(D4=\"\",D10=\"\"),OR(D4=\"\",D15=\"\"),OR(D4=\"\",D10=\"\",D15=\"\")),\"\",23.5%)","v":0.23499999999999999},{"$f":"IF(AND(OR(D4=\"\",E10=\"\"),OR(D4=\"\",E15=\"\"),OR(D4=\"\",E10=\"\",E15=\"\")),\"\",23.5%)","v":""},{"$f":"IF(AND(OR(D4=\"\",F10=\"\"),OR(D4=\"\",F15=\"\"),OR(D4=\"\",F10=\"\",F15=\"\")),\"\",23.5%)","v":""}]
[null,"Annahme/Zielwert: Senkung von Präsentismuskosten in %",null,{"$f":"IF(AND(OR($D$4=\"\",D10=\"\"),OR($D$4=\"\",D15=\"\"),OR($D$4=\"\",D10=\"\",D15=\"\")),\"\",IF(OR(AND(D13,D16=\"\"),AND(D13=\"\",D16)),5%,6.5%))","v":6.5000000000000002E-2},{"$f":"IF(AND(OR($D$4=\"\",E10=\"\"),OR($D$4=\"\",E15=\"\"),OR($D$4=\"\",E10=\"\",E15=\"\")),\"\",IF(OR(AND(E13,E16=\"\"),AND(E13=\"\",E16)),5%,6.5%))","v":""},{"$f":"IF(AND(OR($D$4=\"\",F10=\"\"),OR($D$4=\"\",F15=\"\"),OR($D$4=\"\",F10=\"\",F15=\"\")),\"\",IF(OR(AND(F13,F16=\"\"),AND(F13=\"\",F16)),5%,6.5%))","v":""}]
[null,"Mögliche Ersparnis durch den Gesundheitspaln",null,{"$f":"'Detail Berechnung'!D51","v":196237.08000000002},{"$f":"'Detail Berechnung'!E51","v":""},{"$f":"'Detail Berechnung'!F51","v":""},{"$f":"'Detail Berechnung'!G51","v":196237.08000000002}]
[]
[null,"Senkung der Fluktuationskosten"]
[null,"Durchschnttl. Fluktuationsrate (hier Branchendurchschnitt) ",null,{"$f":"IF(OR(D4=\"\",D6=\"\"),\"\",IF(D4=\"\",\"\",VLOOKUP(D4,Branchenzahlen!B3:F13,5,FALSE)))","v":0.219},{"$f":"IF(OR(D4=\"\",E6=\"\"),\"\",IF(D4=\"\",\"\",VLOOKUP(D4,Branchenzahlen!B3:F13,5,FALSE)))","v":""},{"$f":"IF(OR(D4=\"\",F6=\"\"),\"\",IF(D4=\"\",\"\",VLOOKUP(D4,Branchenzahlen!B3:F13,5,FALSE)))","v":""}]
[null,"Fluktuationskosten in % vom Jahresbruttoeinkommen",null,{"$f":"IF(AND(OR($D$4=\"\",D10=\"\"),OR($D$4=\"\",D15=\"\"),OR($D$4=\"\",D10=\"\",D15=\"\")),\"\",120%)","v":1.2},{"$f":"IF(AND(OR($D$4=\"\",E10=\"\"),OR($D$4=\"\",E15=\"\"),OR($D$4=\"\",E10=\"\",E15=\"\")),\"\",120%)","v":""},""]
[null,"Annahme/Zielwert: Senkung der Fluktuation in %",null,{"$f":"IF(AND(OR($D$4=\"\",D10=\"\"),OR($D$4=\"\",D15=\"\"),OR($D$4=\"\",D10=\"\",D15=\"\")),\"\",IF(OR(AND(D13,D16=\"\"),AND(D13=\"\",D16)),0.4/100,0.7/100))","v":6.9999999999999993E-3},{"$f":"IF(AND(OR($D$4=\"\",E10=\"\"),OR($D$4=\"\",E15=\"\"),OR($D$4=\"\",E10=\"\",E15=\"\")),\"\",IF(OR(AND(E13,E16=\"\"),AND(E13=\"\",E16)),0.4/100,0.7/100))","v":""},{"$f":"IF(AND(OR($D$4=\"\",F10=\"\"),OR($D$4=\"\",F15=\"\"),OR($D$4=\"\",F10=\"\",F15=\"\")),\"\",IF(OR(AND(F13,F16=\"\"),AND(F13=\"\",F16)),0.4/100,0.7/100))","v":""}]
[null,"Jährliche Ersparnis durch den Gesundheitsplan ",null,{"$f":"'Detail Berechnung'!D64","v":234813.60000000056},{"$f":"'Detail Berechnung'!E64","v":""},{"$f":"'Detail Berechnung'!F64","v":""},{"$f":"'Detail Berechnung'!G64","v":234813.60000000056}]
[]
[null,"Jährliche Gesamterspanis durch Senkung der Kosten (kumuliert)",null,{"$f":"'Detail Berechnung'!D66","v":559150.68000000063},{"$f":"'Detail Berechnung'!E66","v":""},{"$f":"'Detail Berechnung'!F66","v":""},{"$f":"'Detail Berechnung'!G66","v":559150.68000000063}]
[null,"Jährliche Gesamtbelastung durch Gesundheitsplan (inkl. Beitragsbefreiungsoption) ",null,{"$f":"'Detail Berechnung'!D67","v":-250439.99999999994},{"$f":"'Detail Berechnung'!E67","v":""},{"$f":"'Detail Berechnung'!F67","v":""},{"$f":"'Detail Berechnung'!G67","v":-250439.99999999994}]
[null,"Wirtschaftlicher Return ",null,{"$f":"'Detail Berechnung'!D68","v":308710.68000000069},{"$f":"'Detail Berechnung'!E68","v":""},{"$f":"'Detail Berechnung'!F68","v":""},{"$f":"'Detail Berechnung'!G68","v":308710.68000000069}]

{"sheet":"Detail Berechnung","index":4,"n_rows":68,"n_cols":7,"rows_kept":68,"cut":false,"hidden":false,"merged":[[3,3,3,6],[2,1,2,6]]}
[]
[]
[null,"Betriebswirtschaftliche Betrachtung eines Gesundheitsplans"]
[]
[null,"Branche ",null,{"$f":"'Return on Invest'!D4","v":"Gesundheitswesen"}]
[null,null,null,"Gruppe 1","Gruppe 2","Gruppe 3","Gesamt"]
[null,"Anzahl Mitarbeitende ",null,{"$f":"'Return on Invest'!D6","v":500},null,null,{"$f":"D7+E7+F7","v":500}]
[null,"Durchschnittliches Jahresbruttoeinkommen je Mitarbeitenden",null,{"$f":"'Return on Invest'!D7","v":55908},{"$f":"'Return on Invest'!E7","v":""},{"$f":"'Return on Invest'!F7","v":""}]
[null,"Bei Budgettarifen: Auswahl von Gesellschaft und Tarif",null,{"$f":"'Return on Invest'!D10","v":"Gothaer - \nFlexSelect"},{"$f":"'Return on Invest'!E10","v":0},{"$f":"'Return on Invest'!F10","v":0}]
[null,"Budgetstufen",null,{"$f":"'Return on Invest'!D11","v":"300-500-750"},{"$f":"'Return on Invest'!E11","v":""},{"$f":"'Return on Invest'!F11","v":""}]
[null,"Gewünschte Budgethöhe",null,{"$f":"'Return on Invest'!$D$12","v":750},{"$f":"'Return on Invest'!E12","v":0},{"$f":"'Return on Invest'!F12","v":0}]
[null,"Monatlicher Beitrag je Mitarbeitenden (inkl. Beitragsbefreiung) ",null,{"$f":"'Return on Invest'!D13","v":20.9},{"$f":"'Return on Invest'!E13","v":""},{"$f":"'Return on Invest'!F13","v":""}]
[]
[null,"Baustein Stationär ",null,{"$f":"'Return on Invest'!D15","v":"MediGroupAG S 2"},{"$f":"'Return on Invest'!E15","v":0},{"$f":"'Return on Invest'!F15","v":0}]
[null,"Monatllicher Beitrag je Mitarbeitenden (inkl. Beitragsbefreiung)",null,{"$f":"'Return on Invest'!D16","v":20.84},{"$f":"'Return on Invest'!E16","v":""},{"$f":"'Return on Invest'!F16","v":""}]
[null,"Baustein Zahnersatz",null,{"$f":"'Return on Invest'!D17","v":0},{"$f":"'Return on Invest'!E17","v":0},{"$f":"'Return on Invest'!F17","v":0}]
[null,"Monatllicher Beitrag je Mitarbeitenden (inkl. Beitragsbefreiung)",null,{"$f":"'Return on Invest'!D18","v":""},{"$f":"'Return on Invest'!E18","v":""},{"$f":"'Return on Invest'!F18","v":""}]
[null,"Baustein Zahnbehandlung",null,{"$f":"'Return on Invest'!D19","v":0},{"$f":"'Return on Invest'!E19","v":0},{"$f":"'Return on Invest'!F19","v":0}]
[null,"Monatllicher Beitrag je Mitarbeitenden (inkl. Beitragsbefreiung)",null,{"$f":"'Return on Invest'!D20","v":""},{"$f":"'Return on Invest'!E20","v":""},{"$f":"'Return on Invest'!F20","v":""}]
[null,"Baustein Vorsorge",null,{"$f":"'Return on Invest'!D21","v":0},{"$f":"'Return on Invest'!E21","v":0},{"$f":"'Return on Invest'!F21","v":0}]
[null,"Monatllicher Beitrag je Mitarbeitenden (inkl. Beitragsbefreiung)",null,{"$f":"'Return on Invest'!D22","v":""},{"$f":"'Return on Invest'!E22","v":""},{"$f":"'Return on Invest'!F22","v":""}]
[null,"Baustein Ambulant",null,{"$f":"'Return on Invest'!D23","v":0},{"$f":"'Return on Invest'!E23","v":0},{"$f":"'Return on Invest'!F23","v":0}]
[null,"Monatllicher Beitrag je Mitarbeitenden (inkl. Beitragsbefreiung)",null,{"$f":"'Return on Invest'!D24","v":""},{"$f":"'Return on Invest'!E24","v":""},{"$f":"'Return on Invest'!F24","v":""}]
[]
[null,"Monatliche Belastung je Mitarbeitenden gesamt in Euro",null,{"$f":"IF(OR(SUM(D12,D15)=0,),\"\",SUM(D12,D15,D17,D19,D21,D23))","v":41.739999999999995},{"$f":"IF(OR(SUM(E12,E15)=0,),\"\",SUM(E12,E15,E17,E19,E21,E23))","v":""},""]
[null,"Monatliche Gesamtbelastung über alle Mitarbeitenden in Euro",null,{"$f":"IF(OR(D7=\"\",D25=\"\"),\"\",D7*D25)","v":20869.999999999996},{"$f":"IF(OR(E7=\"\",E25=\"\"),\"\",E7*E25)","v":""},{"$f":"IF(OR(F7=\"\",F25=\"\"),\"\",F7*F25)","v":""},{"$f":"SUM(D26:F26)","v":20869.999999999996}]
[null,"Jährliche Gesamtbelastung in Euro",null,{"$f":"IF(D26=\"\",\"\",D26*12)","v":250439.99999999994},{"$f":"IF(E26=\"\",\"\",E26*12)","v":""},"",{"$f":"SUM(D27:F27)","v":250439.99999999994}]
[]
[null,"Absentismuskosten"]
[null,"Durchschnittliche AU-Tage mit Lohnfortzahlung je Mitarbeitenden",null,{"$f":"'Return on Invest'!D29","v":26.3},{"$f":"'Return on Invest'!E29","v":""},{"$f":"'Return on Invest'!F29","v":""}]
[null,"Krankentage mit Lohnfortzahlung insgesamt",null,{"$f":"IF(OR(D7=\"\",D30=\"\"),\"\",D7*D30)","v":13150},{"$f":"IF(OR(E7=\"\",E30=\"\"),\"\",E7*E30)","v":""},{"$f":"IF(OR(F7=\"\",F30=\"\"),\"\",F7*F30)","v":""}]
[null,"Durchschnittliche tgl. Lohnfortzahlungskosten je Mitarbeitenden in Euro",null,152,152,152]
[null,"Durchschnittliche tgl. Produktionsaufallkosten je Mitarbeitenden in Euro ",null,258,258,258]
[null,"Jährliche Lohnfortzahlungskosten in Euro",null,{"$f":"IF(OR(D31=\"\",D32=\"\"),\"\",D31*D32)","v":1998800},{"$f":"IF(OR(E31=\"\",E32=\"\"),\"\",E31*E32)","v":""},{"$f":"IF(OR(F31=\"\",F32=\"\"),\"\",F31*F32)","v":""},{"$f":"SUM(D34:F34)","v":1998800}]
[null,"Durchschnittliche tgl. Ausfallkosten (Lohnfortzahlungskosten addiert mit Produktionsausfallkosten) je Mitarbeitenden in Euro",null,{"$f":"'Return on Invest'!$D$30","v":366},{"$f":"'Return on Invest'!E30","v":""},{"$f":"'Return on Invest'!F30","v":""}]
[null,"Jährliche Ausfallkosten insgesamt in Euro",null,{"$f":"IF(OR(D31=\"\",D35=\"\"),\"\",D31*D35)","v":4812900},{"$f":"IF(OR(E31=\"\",E35=\"\"),\"\",E31*E35)","v":""},{"$f":"IF(OR(F31=\"\",F35=\"\"),\"\",F31*F35)","v":""},{"$f":"SUM(D36:F36)","v":4812900}]
[null,"Mögliche Ersparnis"]
[null,"Annahme: durchschnittliche Senkung der Krankheitstage (Angabe in Tagen pro MA)",null,{"$f":"'Return on Invest'!$D$31","v":0.7},{"$f":"'Return on Invest'!E31","v":""},{"$f":"'Return on Invest'!F31","v":""}]
[null,"Jährliche Ersparnis an Lohnfortzahlungskosten in Euro",null,{"$f":"IF(OR(D30=\"\",D34=\"\",D38=\"\"),\"\",D34-D34/D30*(D30-D38))","v":53200},{"$f":"IF(OR(E30=\"\",E34=\"\",E38=\"\"),\"\",E34-E34/E30*(E30-E38))","v":""},{"$f":"IF(OR(F30=\"\",F34=\"\",F38=\"\"),\"\",F34-F34/F30*(F30-F38))","v":""},{"$f":"SUM(D39:F39)","v":53200}]
[null,"Jährliche Ersparnis an Ausfallkosten in Euro",null,{"$f":"IF(OR(D30=\"\",D36=\"\",D38=\"\"),\"\",D36-D36/D30*(D30-D38))","v":128100},{"$f":"IF(OR(E30=\"\",E36=\"\",E38=\"\"),\"\",E36-E36/E30*(E30-E38))","v":""},{"$f":"IF(OR(F30=\"\",F36=\"\",F38=\"\"),\"\",F36-F36/F30*(F30-F38))","v":""},{"$f":"SUM(D40:F40)","v":128100}]
[]
[null,"Präsentismuskosten"]
[null,"Anteil der Mitarbeitenden, die trotz Erkrankung arbeiten in %",null,0.54,0.54,0.54]
[null,"Anzahl der Mitarbeitenden, die trotz Erkrankung arbeiten ",null,{"$f":"IF(OR(D7=\"\",D43=\"\"),\"\",D7*D43)","v":270},{"$f":"IF(OR(E7=\"\",E43=\"\"),\"\",E7*E43)","v":""},{"$f":"IF(OR(F7=\"\",F43=\"\"),\"\",F7*F43)","v":""},{"$f":"SUM(D44:F44)","v":270}]
[null,"Durchschnittl. Jahresbruttoeinkommen je Mitarbeitenden (Branchendurchschnitt)",null,{"$f":"IF((D8=\"\"),\"\",D8)","v":55908},{"$f":"IF((E8=\"\"),\"\",E8)","v":""},{"$f":"IF((F8=\"\"),\"\",F8)","v":""}]
[null,"Durchschnittliche Leistungsminderung je Mitarbeitenden in % ",null,0.2,0.2,0.2]
[null,"Durchschnittliche Kosten der Leistungsminderung pro MA in Euro",null,{"$f":"IF(OR(D45=\"\",D46=\"\"),\"\",D45*D46)","v":11181.6},{"$f":"IF(OR(E45=\"\",E46=\"\"),\"\",E45*E46)","v":""},{"$f":"IF(OR(F45=\"\",F46=\"\"),\"\",F45*F46)","v":""}]
[null,"Jährliche Präsentismuskosten in Euro",null,{"$f":"IF(OR(D44=\"\",D47=\"\"),\"\",D44*D47)","v":3019032},{"$f":"IF(OR(E44=\"\",E47=\"\"),\"\",E44*E47)","v":""},{"$f":"IF(OR(F44=\"\",F47=\"\"),\"\",F44*F47)","v":""},{"$f":"SUM(D48:F48)","v":3019032}]
[null,"Mögliche Ersparnis"]
[null,"Annahme/Zielwert: Senkung der Präsentismuskosten in  %",null,{"$f":"'Return on Invest'!D37","v":6.5000000000000002E-2},{"$f":"'Return on Invest'!E37","v":""},{"$f":"'Return on Invest'!F37","v":""}]
[null,"Jährliche Ersparnis durch Senkung von Präsentismuskosten",null,{"$f":"IF(OR(D48=\"\",D50=\"\"),\"\",D48*D50)","v":196237.08000000002},{"$f":"IF(OR(E48=\"\",E50=\"\"),\"\",E48*E50)","v":""},{"$f":"IF(OR(F48=\"\",F50=\"\"),\"\",F48*F50)","v":""},{"$f":"SUM(D51:F51)","v":196237.08000000002}]
[]
[null,"Fluktuationskosten"]
[null,"Fluktuationsquote in % (Annahme oder Erfahrungswert)",null,{"$f":"'Return on Invest'!D41","v":0.219},{"$f":"'Return on Invest'!E41","v":""},{"$f":"'Return on Invest'!F41","v":""}]
[null,"Fluktuationsquote: Anzahl der MA, die das Unternehmen verlassen",null,{"$f":"IF(OR(D7=\"\",D54=\"\"),\"\",D7*D54)","v":109.5},{"$f":"IF(OR(E7=\"\",E54=\"\"),\"\",E7*E54)","v":""},{"$f":"IF(OR(F7=\"\",F54=\"\"),\"\",F7*F54)","v":""},{"$f":"SUM(D55:F55)","v":109.5}]
[null,"Jahresbruttoeinkommen",null,{"$f":"IF(D8=\"\",\"\",D8)","v":55908},{"$f":"IF(E8=\"\",\"\",E8)","v":""},{"$f":"IF(F8=\"\",\"\",F8)","v":""}]
[null,"Fluktuationskosten in % vom Jahresbruttoeinkommen",null,1.2,1.2,1.2]
[null,"Fluktuationskosten in Euro",null,{"$f":"IF(OR(D56=\"\", D57=\"\"),\"\",D56*D57)","v":67089.599999999991},{"$f":"IF(OR(E56=\"\",E57=\"\"),\"\",E56*E57)","v":""},{"$f":"IF(OR(F56=\"\",F57=\"\"),\"\",F56*F57)","v":""}]
[null,"Jährliche Fluktuationskosten",null,{"$f":"IF(OR(D55=\"\",D58=\"\"),\"\",D55*D58)","v":7346311.1999999993},{"$f":"IF(OR(E55=\"\",E58=\"\"),\"\",E55*E58)","v":""},{"$f":"IF(OR(F55=\"\",F58=\"\"),\"\",F55*F58)","v":""},{"$f":"SUM(D59:F59)","v":7346311.1999999993}]
[null,"Mögliche Ersparnis"]
[null,"Annahme/Zielwert: Senkung der Fluktuation in %",null,{"$f":"'Return on Invest'!D43","v":6.9999999999999993E-3},{"$f":"'Return on Invest'!E43","v":""},{"$f":"'Return on Invest'!F43","v":""}]
[null,"Absenkung auf eine Fluktuationsquote in %",null,{"$f":"IF(OR(D54=\"\",D61=\"\"),\"\",D54-D61)","v":0.21199999999999999},{"$f":"IF(OR(E54=\"\",E61=\"\"),\"\",E54-E61)","v":""},{"$f":"IF(OR(F54=\"\",F61=\"\"),\"\",F54-F61)","v":""}]
[null,"Auswirkung der Fluktuationsquote in Anzahl Mitarbeitende",null,{"$f":"IF(OR(D7=\"\",D61=\"\"),\"\",D7*D62)","v":106},{"$f":"IF(OR(E7=\"\",E61=\"\"),\"\",E7*E62)","v":""},{"$f":"IF(OR(F7=\"\",F61=\"\"),\"\",F7*F62)","v":""},{"$f":"SUM(D63:F63)","v":106}]
[null,"Jährliche Ersparnis durch Senkung von Fluktuationskosten",null,{"$f":"IF(OR(D58=\"\",D63=\"\"),\"\",D59-(D63*D58))","v":234813.60000000056},{"$f":"IF(OR(E58=\"\",E63=\"\"),\"\",E59-(E63*E58))","v":""},{"$f":"IF(OR(F58=\"\",F63=\"\"),\"\",F59-(F63*F58))","v":""},{"$f":"SUM(D64:F64)","v":234813.60000000056}]
[]
[null,"Jährliche Gesamtersparnis durch Senkung der Absentismus-, Präsentismus- und Fluktuationskosten",null,{"$f":"IF(OR(D40=\"\",D51=\"\",D64=\"\"),\"\",D40+D51+D64)","v":559150.68000000063},{"$f":"IF(OR(E40=\"\",E51=\"\",E64=\"\"),\"\",E40+E51+E64)","v":""},{"$f":"IF(OR(F40=\"\",F51=\"\",F64=\"\"),\"\",F40+F51+F64)","v":""},{"$f":"SUM(D66:F66)","v":559150.68000000063}]
[null,"Jährliche Gesamtbelastung durch den Gesundheitsplans (inkl. Beitragsbefreiung)",null,{"$f":"IF(D27=\"\",\"\",D27*-1)","v":-250439.99999999994},{"$f":"IF(E27=\"\",\"\",E27*-1)","v":""},{"$f":"IF(F27=\"\",\"\",F27*-1)","v":""},{"$f":"SUM(D67:F67)","v":-250439.99999999994}]
[null,"Ökonomisches Ergebnis",null,{"$f":"IF(OR(D66=\"\",D67=\"\"),\"\",D66+D67)","v":308710.68000000069},{"$f":"IF(OR(E66=\"\",E67=\"\"),\"\",E66+E67)","v":""},{"$f":"IF(OR(F66=\"\",F67=\"\"),\"\",F66+F67)","v":""},{"$f":"SUM(D68:F68)","v":308710.68000000069}]

{"sheet":"Absentismus","index":5,"n_rows":15,"n_cols":4,"rows_kept":15,"cut":false,"hidden":false,"merged":[[2,1,2,3],[4,2,4,3],[5,2,5,3],[8,2,8,3],[9,2,9,3],[6,2,6,3]]}
[]
[]
[null,"Absentismus"]
[]
[null,null,"Absentismus ist das krankheitsbedinge Fernbleiben von der Arbeit. Gemessen werden Absentismuskosten durch die Zählung von Arbeitsunfähigkeitstagen, dem Produktionsaufall (Lohnkosten) sowie dem Bruttowertschöpfungsausfall (Arbeitsproduktivität). "]
[null,"•","Die durchschnittlichen Arbeitsunfähigkeitstage je Branche variieren stark. Den höchsten Ausfall verzeichnet das Cluster \"Öffentliche und sonstige Dienstleister, Erziehung, Gesundheit\"  (s. BAUA, 2024)\n"]
[null,null,{"$f":"IF(C8=\"\",\"\",\"Für die ausgewählte Branche ergeben sich folgende durchschnittliche AU-Tage je Mitarbeitenden:\")","v":"Für die ausgewählte Branche ergeben sich folgende durchschnittliche AU-Tage je Mitarbeitenden:"}]
[null,null,{"$f":"IF('Return on Invest'!D4=\"\",\"\",'Return on Invest'!D4)","v":"Gesundheitswesen"},{"$f":"'Return on Invest'!D29& \"\" &\" Tage\"","v":"26,3 Tage"}]
[null,"•","Die Bundesanstalt für Arbeitsschutz und Arbeitsmedizin hat für das Jahr 2024 den durchschnittlichen Produktionsaufall je Arbeitsunfähigkeitstag in Höhe von 152 € je fehlenden Mitarbeitenden gerechnet. Zusätzlich wird der  Verlust der Arbeitsproduktivität je AU-Tag und Mitarbeitenden durchschnittlich mit 258 € beziffert. Beide Werte addiert (410 €) ergeben die Kosten eines Ausfalltags je Mitarbeitenden. "]
[]
[]
[null,null,"Schlüsselwerte zum Absentismus","Wirkung der bKV "]
[null,"•","Jede vierte Krankmeldung (19,9 %) geht auf Erkrankungen der Atemwege zurück (s. BAUA, 2024). Darunter werden unter anderem Husten, Schnupfen und Bronchialinfekte verstanden. ","Unser KI-basierter Symptomchecker kann auswerten, ob es sich um einen leichten Infekt oder eine ernste Erkrankung handelt, die ärztlich abgesichert werden muss. Über die integrierte Arztsuche kann nach Entfernung, Sprachkompetenzen u.ä. gefiltert werden. So wird der/die beste Ärzt*in gefunden. Zudem wird die gesetzlichen Zuzahlungen für Medikamente übernommen."]
[null,"•","Mit 19,3 % sind Erkrankungen des Muskelskelett-Systems (v.a. Rückenschmerzen) die zweithäufigste Ursache für eine Krankmeldung (s. BAUA, 2024). ","Ob klassische Physiotherapie auf Bundesbeihilfeniveau oder Osteopathie, Chiropraktik sowie Naturheilverfahren durch Ärzt*innen - die bKV bietet eine schnellere Versorgung und fördert die Heilung, sodass Mitarbeitende schneller wieder einsatzbereit sind.  "]
[null,"•","Besonders kritisch ist der Ausfall von Mitarbeitenden, die eine Schlüsselkompetenz besitzen und bei Ausfall nicht bzw. kaum verteten werden können (Fachkräftemangel). Für Unternehmen wird es immer schwieriger, offene Stellen zu besetzen. Während die Zahl der offenen Stellen in den letzten 10 Jahren gestiegen ist, sinkt die Zahl der Arbeitsuchenden (s. Bundesagentur für Arbeit). ","Die bKV kann in Stellenausschreibungen genannt werden und ist ein Instrument, neue Mitarbeitende zu finden. Unternehmen grenzen sich positiv vom Wettbewerb ab und steigern ihre Arbeitgeberattraktivität (sog. Employer Branding). Engpässe bei Ausfall eines Mitarbeitenden können so abgefedert werden. "]

{"sheet":"Präsentismus","index":6,"n_rows":14,"n_cols":4,"rows_kept":14,"cut":false,"hidden":false,"merged":[[4,2,4,3],[5,2,5,3],[7,2,7,3],[6,2,6,3],[2,1,2,3]]}
[]
[]
[null,"Präsentismus"]
[]
[null,null,"Präsentismus beschreibt das Arbeiten trotz einer Erkrankung - entweder von Zuhause oder vor Ort. Präsentismus kann vom Arbeiten mit leichten Symptomen bis hin zur Tätigkeit trotz schwerwiegender Beschwerden reichen. Dies kann zu einer eingeschränkten Leistungsfähigkeit, Fehlern und Unfällen führen. "]
[null,"•","Präsentsimus ist schwer zu beziffern. Entgegen des Absentismus, wofür Arbeitsunfähigkeitstage zur Messung verwendet werden, gibt es beim Präsentismus kein einheitliches Bewertungsschema. Die Studienlage geht folglich weit auseinander. "]
[null,"•","Laut einer aktuellen Auswertung der Bundesanstalt für Arbeitsschutz und Arbeitsmedizin (BAuA) gaben 54 % der Beschäftigten an, im Jahr 2024 mindestens einmal krank zur Arbeit gegangen zu sein, wobei insbesondere Frauen mit etwa 60 % häufiger Präsentismus zeigten als Männer mit rund 48 %."]
[null,"•","Die Leistung der Mitarbeitenden, die trotz Erkrankung arbeiten, ist durchschnittlich um 20 % gemindert (sog. Produktivitäts-minderung, vgl. Bödeker und Hüsing, 2008)."]
[]
[null,null,"Schlüsselwerte zum Präsentismus","Wirkung der bKV "]
[null,"•","Liegt eine offizielle Krankschreibung vor, wird Präsentismus deutlich gesenkt. Nur noch 11,5 % der Befragten gehen in diesem Fall krank zur Arbeit (Techniker Krankenkasse, 2022). ","Mittels Symptomchecker kann abgeklärt werden, ob die Kunsultation von Ärzt*innen geboten ist. Durch unser Angebot der Telemedizin können Mitarbeitende online ein ärztliches Gespräch führen und erhalten Krankschreibungen sowie ggfs. Rezepte. "]
[null,"•","30 % der gesetzlich Versicherten mussten  mehr als 4 Wochen auf einen Facharzttermin warten ( Spitzenverband der Gesetzlichen Krankenversicherung (GKV 2026)). ","Deutliche Reduktion dank Facharztterminservice. Versicherte vermeiden lange Suchen und aufwändige Terminkoordination. "]
[null,"•","Während 34,8 % der Befragten trotz einer körperlichen Verletzung arbeiten, kommen hingegen  56,8 % der Befragten trotz emotionaler Erschöpfung  ihrer Tätigkeit nach (Techniker Krankenkasse, 2022). ","Durch die bKV können Mitarbeitende eine telefonische Beratung zur Erschöpfungsprävention nutzen. Hier helfen Experten, der Erschöpfungsfalle zu entkommen und wieder Kraft zu tanken."]
[null,"•","70% der Befragten, die Angehörige pflegen, fühlen sich stark emotional belastet, knapp die Hälfte fühlt sich körperlich überfordert und weist körperliche Leiden auf (sog. Proxy-Präsentismus, wobei Mitarbeitende nicht selbst von der eigentlichen Krankheit betroffen sind, s. Ärzteblatt 2019).","Bei Aufkommen einer Pflegesituation helfen Pflegeprofis bei der Beratung und Organisation (bspw. Vermittlung von Pflegediensten). Durch die bKV wird ein 24h Pflegetelefon zur Verfügung gestellt. Außerdem spricht der Kooperationspartner eine Pflegeheimplatzgarantie aus. Mitarbeitende werden folglich starkt entlastet.  "]

{"sheet":"Fluktuation","index":7,"n_rows":14,"n_cols":4,"rows_kept":14,"cut":false,"hidden":false,"merged":[[2,1,2,3],[4,2,4,3],[5,2,5,3],[6,2,6,3],[7,2,7,3]]}
[]
[]
[null,"Fluktuation"]
[]
[null,null,"Mitarbeiterfluktuation beschreibt die Abgänge von Angestellten und wird auch als Personalfluktuation bezeichnet. Sie leitet in Unternehmen einen Prozess ein, der von der Kündigungsphase bis zur Rekrutierung und Einstellung neuer Mitarbeitenden andauert. Unter dem Begriff werden sämtliche Auflösungen von Arbeitsverhältnissen zusammengefasst, für gewöhnlich sind damit jedoch arbeitnehmerseitige Kündigungen gemeint."]
[null,"•","Der Verlust von Mitarbeitern ist immer mit Fluktuationskosten verbunden. In welchem Rahmen sich diese bewegen, hängt in erster Linie von der erforderlichen Qualifikation der Mitarbeitenden ab. Die Kosten für Rekrutierung, Einarbeitung und Know-How Verlust stehen im direkten Zusammenhang mit dem Anforderungsprofil. Treten Mitarbeitende aus dem Unternehmen aus, verursacht dies Kosten von ungefähr 120 % des jeweiligen Jahresbruttogehalts:\n\n- 30 % entfallen auf die Minderleistung des Mitarbeitenden nach Entscheidung für den Austritt\n- 30 % Anwerbungskosten (bspw. Kosten für Stellenausschreibungen)\n- 10 % Auswahl und Einstellungskosten (auch Erstattung von Bewerbungskosten)\n- 50 % Einarbeitungskosten im ersten Jahr (vgl. https://www.personio.de/hr-lexikon/fluktuationsrate-berechnen/, Stand 04.2024). "]
[null,"•","Die Fluktuationsrate beschreibt, wie häufig ein Mitarbeitendenwechsel stattfindet. Diese Rate ist branchenabhängig. Das Branchencluster \"Gastgewerbe\" weist die höchste Fluktuationsrate auf. "]
[null,null,{"$f":"IF(C9=\"\",\"\",\"Für die ausgewählte Branche ergeben sich folgende AU-Tage je Mitarbeitenden:\")","v":"Für die ausgewählte Branche ergeben sich folgende AU-Tage je Mitarbeitenden:"}]
[null,null,{"$f":"IF('Return on Invest'!D4=\"\",\"\",'Return on Invest'!D4)","v":"Gesundheitswesen"},{"$f":"IF('Return on Invest'!D4=\"\",\"\",'Return on Invest'!D41)","v":0.219}]
[]
[null,null,"Schlüsselwerte zur Fluktuation","Wirkung der bKV "]
[null,"•","53 % der befragten kleinen und mittelständischen Unternehmen geben an, Schwierigkeiten zu haben, Personal zu gewinnen und zu binden. Im Vergleich zum Vorjahr stiegen diese Werte je nach Unternehmensgröße um bis zu 17%. Während 2022 noch 18% der befragten KMU keine Maßnhamen ergriffen, ihre Arbeitgeberattraktivität zu steigern, waren es 2023 nur noch 6% der Unternehmen (Gothaer KMU-Studie, 2023).","Ein smarter Gesundheitsplan deckt sowohl Kosten- als auch Krankheitsrisiken ab. Mitarbeitende, die aufgrund ihres Alters, ihrer Vorerkrankungen oder der finanziellen Situation eine entsprechende Versicherung im Einzelgeschäft nicht abschließen können, erhalten mit der bKV einen sofortigen Schutz. Das bindet Mitarbeitende an das Unternehmen und macht die soziale Fürsorge des Unternehmens spürbar. "]
[null,"•","Laut einer vom PKV-Verband in Auftrag gegebenen Studie aus 2026 sagen 55% der Mitarbeitenden, dass die bKV für sie wertvoller als andere Zusatzleistungen wie etwa Nahverkehrtstickets oder Diensthandys sind (18,4% unentschieden, 26,6% nein)   https://www.pkv.de/verband/presse/pressemitteilungen/eigenanteile-in-der-pflege-grosse-mehrheit-wuenscht-sich-betriebliche-vorsorge/#c8921","Die Gesundheitsbudgets können effektiver wirken als eine klassische Gehaltserhöhung. Das Budget kommt 1:1 bei den Mitarbeitenden an und kann flexibel eingesetzt werden. "]
[null,"•","2023 verfügen dennoch nur 14 % der befragten Unternehmen über eine betriebliche Krankenversicherung (Gothaer KMU-Studie, 2023). ","Die bKV kann schon ab 5 Mitarbeitenden angeboten werden. Es gibt keine Wartezeiten, d.h. der Schutz greift sofort. "]

{"sheet":"Branchenzahlen","index":8,"n_rows":44,"n_cols":6,"rows_kept":44,"cut":false,"hidden":false,"merged":[[13,2,13,3]]}
[]
[]
[null,"Branche","Durchschnittliches Arbeitsentgelt pro Monat","Durchschnittliches Jahrebruttoeinkommen","Krankentage","Flutktuationsrate"]
[null,"Produzierendes Gewerbe (inkl. Baugewerbe)",4596,{"$f":"C4*12","v":55152},24.8,0.184]
[null,"Erziehung und Unterricht",5274,63288,26.3,0.25769999999999998]
[null,"Gastgewerbe",3042,36504,24.8,0.60650000000000004]
[null,"Gesundheitswesen",4659,55908,26.3,0.219]
[null,"Handel, Instandhaltung und Reparatur (inkl. KFZ) ",4252,51024,29.9,0.31540000000000001]
[null,"Immobilien",4531,54372,19.899999999999999,0.255]
[null,"Information und Kommunikation ",5955,71460,14.3,0.48699999999999999]
[null,"Öffentliche Verwaltung",4791,57492,26.3,0.123]
[null,"Verkehr",3784,45408,23.9,0.34300000000000003]
[null,"Finanz- und Versicherungsdienstleister",6182,74184,19.899999999999999,0.161]
[null,null,"Quelle: Statista, Stand 2024",null,"Quelle: BauA, Stand 2024","Quelle: Statista, Stand 2024"]
[]
[]
[null,null,null,"ohne Beitragsbefreiung"]
[null,"MediGroupAG Z Basis",9.0500000000000007]
[null,"MediGroupAG Z ",13.4]
[null,"MediGroupAG Z Premium",18.059999999999999]
[null,"WellDent 500",13.9,13.2]
[null,"WellDent 1.000",24.1,23]
[null,"WellDent 1.500",31,29.6]
[null,"WellDent 2.500",41.5,39.6]
[null,"WellDent 5.000",61,58.1]
[]
[null,"MediGroupAG S U",4.2300000000000004]
[null,"MediGroupAG S 2",20.84]
[null,"MediGroupAG S 1",25.45]
[null,"GetWell Comfort",21.15,19.95]
[null,"GetWell Premium",26.44,24.95]
[]
[null,"MediGroupAG V",5.0999999999999996]
[null,"MediGroupAG V Premium",12.26]
[null,"CareWell",8.1,7.7]
[null,"CareWell Exclusive",44.4,42.2]
[]
[null,"MediGroupAG ZB Basis",5.77]
[null,"MediGroupAG ZB",9.98]
[]
[null,"MediGroupAG A",15.96]
[]
[null,"TravelWell",2.5,2.2999999999999998]
[null,"GetWell Daily","0,82 je 1€ KTG","0,78 je 1€ KTG"]